bitfinex-derivatives/quotes_ETHF0:USTF0_20251226
["timestamp","ask_amount","ask_price","bid_price","bid_amount"]
[1766718668934,0.00341841,2976.3,2974.8,3.56099957]
[1766718674434,0.16816,2976.0,2974.4,1.47037973]
[1766718676438,0.16816,2975.9,2974.4,1.47037973]
[1766718676647,0.16817,2975.8,2974.4,1.47037973]
[1766718676936,0.16818,2975.7,2974.4,1.47037973]
[1766718677536,0.16818,2975.7,2974.1,0.00813745]
[1766718677741,1.39651733,2975.7,2974.1,0.00813745]
[1766718680541,4.76351733,2975.7,2974.1,0.00813745]
[1766718681443,40.8,2975.6,2974.1,0.00813745]
[1766718682341,3.367,2975.5,2974.1,0.00813745]
[1766718683746,40.8,2975.6,2974.1,0.00813745]
[1766718683938,1.39651733,2975.7,2974.1,0.00813745]
[1766718684649,0.16819,2975.4,2974.1,3.745e-05]
[1766718684946,4.59533733,2975.7,2974.1,3.745e-05]
[1766718685143,0.16823,2974.7,2972.6,1.426]
[1766718685639,0.0050421,2973.9,2973.4,0.0050421]
[1766718686048,0.00803284,2973.9,2973.4,0.00936973]
[1766718686440,0.16823,2974.7,2973.4,0.00936973]
[1766718687648,0.1723192,2974.7,2973.4,0.00936973]
[1766718689547,0.0040892,2974.7,2973.4,0.00936973]
[1766718723885,0.0040892,2974.7,2973.5,3.62411454]
[1766718724284,0.0040892,2974.7,2973.4,0.00936973]
[1766718724584,0.0040892,2974.7,2973.5,0.79004954]
[1766718724779,0.0040892,2974.7,2973.5,4.58246408]
[1766718724978,0.0040892,2974.7,2973.5,3.79241454]
[1766718725183,0.0040892,2974.7,2973.4,0.00936973]
[1766718730083,0.0040892,2974.7,2973.5,0.78996731]
[1766718737291,0.78996731,2974.2,2973.4,0.00936973]
[1766718744798,0.78996731,2974.4,2973.4,0.00936973]
[1766718745498,0.78996731,2974.1,2973.4,0.00936973]
[1766718747701,0.78996731,2974.1,2972.7,0.95830731]
[1766718748202,0.78996731,2974.1,2972.7,0.78996731]
[1766718748600,0.0050421,2973.7,2973.1,0.0050421]
[1766718750204,7.82705651,2974.7,2973.1,0.0050421]
[1766718751492,7.99528651,2974.7,2973.1,0.0050421]
[1766718757701,7.99528651,2974.7,2973.3,0.78996731]
[1766718759096,0.16824,2974.6,2973.1,0.0050421]
[1766718760506,0.78996731,2974.4,2973.1,0.0050421]
[1766718767209,0.78996731,2973.5,2972.7,0.0035722]
[1766718767403,11.18596731,2973.8,2971.2,4.472]
[1766718767607,3.367,2973.8,2972.2,0.78996731]
[1766718767807,4.15696731,2973.8,2971.6,0.16841]
[1766718768014,4.15696731,2973.8,2972.0,0.78996731]
[1766718768219,0.0050421,2973.2,2972.6,0.0050421]
[1766718768514,0.0050421,2973.2,2972.6,0.00800415]
[1766718769610,0.0050421,2973.2,2972.0,0.78996731]
[1766718770819,0.0050421,2973.2,2972.3,0.0050421]
[1766718774619,0.79500941,2973.2,2972.3,0.0050421]
[1766718777325,0.79500941,2973.2,2972.3,4.21e-05]
[1766718779617,0.0050421,2973.2,2972.3,4.21e-05]
[1766718780624,0.79500941,2973.2,2972.3,4.21e-05]
[1766718782729,0.0050421,2973.2,2972.3,4.21e-05]
[1766718788532,0.79500941,2973.2,2972.3,4.21e-05]
[1766718790122,0.79500941,2973.2,2972.0,0.00394194]
[1766718791036,0.79500941,2973.2,2972.3,0.0050421]
[1766718792029,0.0050421,2973.2,2972.3,0.0050421]
[1766718797442,0.0050421,2973.2,2972.0,0.00394194]
[1766718798231,0.1733621,2973.2,2972.0,0.00394194]
[1766718798431,4.15806842,2973.1,2971.3,0.16842]
[1766718799435,0.16833,2973.0,2971.3,0.16842]
[1766718799640,0.16833,2973.0,2971.9,0.0050421]
[1766718799837,0.16835,2972.7,2971.3,0.00294708]
[1766718800834,0.16835,2972.7,2971.7,0.00336142]
[1766718801033,0.16835,2972.7,2971.3,0.00294708]
[1766718805138,7.051,2972.6,2971.3,0.00294708]
[1766718805338,7.05414485,2972.6,2971.3,0.00294708]
[1766718809148,10.58949485,2972.6,2971.3,0.00294708]
[1766718811156,0.16836,2972.5,2971.3,0.00294708]
[1766718813953,11.21221327,2972.6,2971.3,0.00294708]
[1766718814353,0.16837,2972.2,2971.3,0.00294708]
[1766718814651,0.79106842,2971.8,2970.2,0.26581191]
[1766718814952,3.3720421,2971.3,2968.7,0.79106842]
[1766718815149,3.3720421,2971.3,2968.7,1.06512901]
[1766718815349,3.3720421,2971.3,2969.4,3.86344171]
[1766718815550,3.3720421,2971.3,2969.4,3.86705577]
[1766718816157,3.3720421,2971.3,2969.4,0.00361406]
[1766718816358,0.16845,2970.9,2969.4,0.00361406]
[1766718825860,0.16845,2970.8,2969.4,0.00361406]
[1766718826369,0.16846,2970.7,2969.4,0.00361406]
[1766718827161,0.79106842,2970.6,2969.4,0.00361406]
[1766718827365,0.16848,2970.3,2969.4,1.406e-05]
[1766718827859,0.16858,2968.5,2965.9,0.79106842]
[1766718828063,0.79106842,2969.0,2966.1,0.16872]
[1766718828267,7.071,2968.9,2966.7,0.79106842]
[1766718828466,7.071,2968.9,2967.1,0.79106842]
[1766718828672,7.07437524,2968.9,2967.1,0.79518646]
[1766718829063,0.00337524,2968.9,2967.1,0.00411804]
[1766718829259,0.00505068,2968.3,2967.7,0.00505068]
[1766718832668,0.00505068,2968.3,2967.1,0.00411804]
[1766718834169,0.00505068,2968.3,2967.1,1.804e-05]
[1766718834873,40.8,2968.2,2967.1,1.804e-05]
[1766718835871,0.00505068,2968.3,2967.1,1.804e-05]
[1766718845776,0.00337524,2968.9,2967.4,0.00505068]
[1766718846677,0.00505068,2968.4,2967.4,0.00505068]
[1766718849677,0.17364068,2968.4,2967.1,1.804e-05]
[1766718851581,1.11551622,2968.3,2967.1,1.804e-05]
[1766718851882,0.94685268,2968.2,2967.1,1.804e-05]
[1766718852084,0.1686,2968.3,2967.1,1.804e-05]
[1766718852386,0.94669759,2968.2,2967.1,1.804e-05]
[1766718852587,0.94669759,2968.1,2967.1,1.804e-05]
[1766718852781,0.1686,2968.3,2967.1,1.804e-05]
[1766718852981,0.94729649,2968.2,2967.1,1.804e-05]
[1766718853277,0.94729649,2968.1,2967.1,1.804e-05]
[1766718853481,0.1686,2968.2,2967.1,1.804e-05]
[1766718853781,0.16861,2968.0,2967.1,1.804e-05]
[1766718854291,0.94887355,2967.9,2967.1,1.804e-05]
[1766718854483,0.16861,2968.0,2966.3,1.21180903]
[1766718855294,0.94986953,2967.9,2966.3,1.21180903]
[1766718855484,0.16861,2968.0,2966.3,1.21475453]
[1766718855690,0.94976011,2967.9,2966.3,1.21475453]
[1766718855887,0.16861,2968.0,2966.3,1.21475453]
[1766718856186,0.94975983,2967.9,2966.3,1.21475453]
[1766718856392,0.95110287,2967.8,2966.3,1.21475453]
[1766718856691,0.16859,2968.3,2966.3,1.21475453]
[1766718856891,0.95111236,2968.2,2966.3,1.21475453]
[1766718857095,0.95111236,2968.1,2966.3,1.21475453]
[1766718857390,0.95111236,2968.0,2966.3,1.21475453]
[1766718857589,0.95111236,2967.9,2966.3,1.21475453]
[1766718857792,0.95111236,2967.8,2966.3,1.21475453]
[1766718858093,0.95111236,2967.7,2966.3,1.21475453]
[1766718858392,0.1686,2968.2,2966.3,1.21475453]
[1766718858594,0.95477294,2968.1,2966.3,1.21475453]
[1766718858788,0.95477294,2968.0,2966.3,1.21475453]
[1766718858987,0.1686,2968.2,2966.3,1.21475453]
[1766718858988,0.95477294,2967.9,2966.3,1.21475453]
[1766718859182,0.95477294,2967.8,2966.3,1.21475453]
[1766718859388,0.95477294,2967.7,2966.3,1.21475453]
[1766718859588,0.3369,2967.7,2966.3,1.21475453]
[1766718859888,0.3369,2967.7,2966.7,0.79368041]
[1766718860594,0.3369,2967.7,2966.3,1.21475453]
[1766718860894,0.3369,2967.7,2966.7,0.79368041]
[1766718861288,0.00505068,2968.4,2967.0,0.79368041]
[1766718861489,1.74827026,2968.3,2966.7,0.79368041]
[1766718861691,0.95458985,2968.2,2966.7,0.79368041]
[1766718861890,0.95458985,2968.1,2966.3,1.38345453]
[1766718862199,0.95458985,2968.0,2966.3,1.38345453]
[1766718862390,0.95458985,2967.9,2966.3,1.38345453]
[1766718862590,0.95458985,2967.8,2966.3,1.38345453]
[1766718862786,40.97364068,2968.4,2966.3,1.38345453]
[1766718862991,0.95470784,2968.3,2966.3,1.38345453]
[1766718863191,0.95470784,2968.2,2966.3,1.38345453]
[1766718863498,0.95470784,2968.1,2966.3,1.38345453]
[1766718863699,0.95470784,2968.0,2966.3,1.38345453]
[1766718863901,0.95470784,2967.9,2966.3,1.38345453]
[1766718864100,40.97364068,2968.4,2966.3,1.38345453]
[1766718864304,0.95474156,2968.3,2966.3,1.38345453]
[1766718864602,0.95474156,2968.2,2966.3,1.38345453]
[1766718864796,0.95474156,2968.1,2966.3,1.38345453]
[1766718864994,0.95474156,2968.0,2966.3,1.38345453]
[1766718865195,0.95474156,2967.9,2966.3,1.38345453]
[1766718865390,7.096,2968.3,2966.3,1.38345453]
[1766718865595,0.95499201,2968.2,2966.3,1.38345453]
[1766718865801,0.95499201,2968.1,2966.3,1.38345453]
[1766718866097,0.00505068,2968.4,2966.5,1.14287601]
[1766718866297,0.00505068,2968.4,2966.4,3.85726318]
[1766718866298,0.00505068,2968.4,2967.1,0.16866]
[1766718866502,0.00505068,2968.4,2967.0,1.14287601]
[1766718866997,0.00505068,2968.4,2967.1,3.70407569]
[1766718867198,0.00337524,2968.9,2967.3,0.16865]
[1766718868195,0.00337524,2968.9,2967.8,0.00505068]
[1766718869202,0.00505068,2968.6,2967.8,0.00505068]
[1766718877811,0.00505068,2968.6,2966.9,10.143]
[1766718878010,0.00505068,2968.6,2966.7,0.16868]
[1766718878507,0.00505068,2968.6,2966.8,0.16868]
[1766718878912,0.00505068,2968.6,2967.4,0.00505068]
[1766718882015,0.00505068,2968.6,2967.6,0.79317342]
[1766718882317,0.00505068,2968.6,2967.4,0.00505068]
[1766718883715,0.00505068,2968.6,2967.4,0.7982241]
[1766718883922,0.00505068,2968.6,2967.4,0.00505068]
[1766718902935,0.00505068,2968.6,2967.4,0.17369068]
[1766718903132,0.00337524,2968.9,2967.5,0.16864]
[1766718903436,0.00337524,2968.9,2967.6,0.16863]
[1766718904228,0.00505068,2968.5,2967.4,0.00505068]
[1766718916452,0.00505068,2968.5,2966.7,6.54468]
[1766718916647,0.00505068,2968.5,2966.7,0.16868]
[1766718917446,0.00505068,2968.5,2967.3,0.00505068]
[1766718921555,0.17363068,2968.5,2967.3,0.00505068]
[1766718926253,0.16859,2968.4,2967.3,0.00505068]
[1766718926559,0.00505068,2968.5,2967.3,0.00505068]
[1766718926560,0.1686,2968.3,2967.3,0.00505068]
[1766718926857,0.16862,2967.8,2966.4,10.143]
[1766718927056,0.16862,2967.8,2966.3,4.4739455]
[1766718927852,0.16863,2967.7,2966.3,0.0029455]
[1766718928055,0.16864,2967.5,2966.3,0.0029455]
[1766718931857,40.8,2968.2,2966.3,0.0029455]
[1766718932064,0.16868,2966.8,2965.5,0.003]
[1766718932259,0.00505068,2966.4,2965.5,0.003]
[1766718933060,0.16871,2966.3,2964.6,10.143]
[1766718933263,0.16871,2966.3,2964.4,4.473]
[1766718933865,0.16871,2966.3,2964.2,0.16883]
[1766718934356,1.46195942,2966.3,2964.3,3.67101691]
[1766718934563,1.46195942,2966.3,2964.2,0.00418593]
[1766718935066,1.46195942,2966.3,2964.3,3.71433645]
[1766718935268,0.00884469,2966.4,2964.3,3.88314645]
[1766718935665,0.00884469,2966.4,2964.4,0.16881]
[1766718935863,1.44376908,2967.2,2964.3,8.18733645]
[1766718936068,0.16863,2967.6,2964.9,1.2943836]
[1766718936263,0.16863,2967.6,2965.5,0.16875]
[1766718936465,0.16863,2967.6,2965.6,4.474]
[1766718936664,0.16863,2967.6,2965.6,8.20880289]
[1766718936860,0.17225365,2967.6,2966.3,0.00505068]
[1766718937069,0.00505068,2966.9,2966.3,0.00745573]
[1766718937972,0.17225365,2967.6,2966.3,0.00745573]
[1766718939080,0.00505068,2967.2,2966.3,0.00745573]
[1766718942077,0.17371068,2967.2,2965.2,4.64277]
[1766718942479,0.17371068,2967.2,2965.5,0.16875]
[1766718942480,0.00505068,2967.2,2965.5,0.16875]
[1766718942677,0.00505068,2967.2,2965.6,0.16875]
[1766718943082,0.00505068,2967.2,2966.1,0.00505068]
[1766718945884,0.00362365,2967.6,2966.1,0.17377068]
[1766718946085,0.00362365,2967.6,2966.2,3.92526878]
[1766718946681,1.48932074,2967.7,2966.2,3.92526878]
[1766718946682,1.48932074,2967.7,2966.3,4.64271]
[1766718947183,1.48932074,2967.7,2966.4,3.56818667]
[1766718947783,1.4928331,2967.7,2966.4,3.56818667]
[1766718948080,0.00505068,2967.3,2966.4,3.56818667]
[1766718948287,0.00505068,2967.3,2966.3,0.16871]
[1766718948475,1.4928331,2967.7,2966.3,0.16871]
[1766718949491,0.00505068,2967.3,2966.3,0.16871]
[1766718952186,1.4928331,2967.7,2966.4,0.1687]
[1766718952382,1.44276595,2968.3,2966.6,0.16869]
[1766718952582,1.44276595,2968.3,2966.7,0.16868]
[1766718953295,0.00505068,2967.8,2966.7,0.16868]
[1766718953482,1.44276595,2968.3,2966.2,4.474]
[1766718953688,1.44276595,2968.3,2967.0,0.16867]
[1766718954687,3.851e-05,2967.9,2967.0,0.16867]
[1766718955492,1.44606938,2968.3,2967.0,0.16867]
[1766718955689,11.65086768,2968.9,2967.5,0.0008]
[1766718956088,11.65086768,2968.9,2967.2,0.16865]
[1766718956590,11.65086768,2968.9,2967.8,0.00505068]
[1766718956791,11.65356403,2968.9,2967.8,0.00872077]
[1766718967402,11.65356403,2968.9,2966.9,14.422]
[1766718967601,11.65356403,2968.9,2966.9,4.279]
[1766718967803,0.16857,2968.7,2966.9,4.279]
[1766718968393,0.00505068,2968.1,2967.5,0.00505068]
[1766718969301,0.00505068,2968.1,2966.9,4.28243822]
[1766718970304,0.00505068,2968.1,2967.2,0.00505068]
[1766718972605,0.00505068,2968.1,2966.9,0.00343822]
[1766718973610,0.00505068,2968.1,2967.2,0.00505068]
[1766718978706,0.00505068,2968.1,2966.9,0.00343822]
[1766718978901,0.16861,2968.0,2966.9,0.00343822]
[1766718980608,0.16861,2968.0,2967.2,0.00505068]
[1766718982510,0.00505068,2968.1,2967.2,0.00505068]
[1766718984816,1.45360882,2968.7,2967.2,0.00505068]
[1766718985415,0.00269635,2968.9,2967.2,0.00505068]
[1766718986816,0.00505068,2968.3,2967.2,0.00505068]
[1766718987019,0.00269635,2968.9,2967.5,1.14280977]
[1766718987313,0.00269635,2968.9,2967.6,3.59290538]
[1766718988107,0.12053331,2969.9,2967.7,0.16863]
[1766718988417,0.12053331,2969.9,2967.8,3.86347583]
[1766718988913,0.00505068,2969.0,2967.8,3.86347583]
[1766718989311,0.00771958,2969.0,2967.8,3.86347583]
[1766718990013,0.00771958,2969.0,2967.7,0.16863]
[1766718990320,0.00771958,2969.0,2967.4,4.471]
[1766718992217,0.00771958,2969.0,2967.4,4.63964]
[1766718992416,0.00771958,2969.0,2967.4,0.16864]
[1766718992618,0.00771958,2969.0,2967.4,4.63864]
[1766718992819,0.00771958,2969.0,2967.5,3.89849288]
[1766718993019,0.00771958,2969.0,2967.5,5.04130265]
[1766718993315,0.00771958,2969.0,2967.6,0.16863]
[1766718993719,0.00771958,2969.0,2967.7,3.89430501]
[1766718993922,0.00771958,2969.0,2967.7,4.06293501]
[1766718994913,1.958e-05,2969.0,2967.7,3.89430501]
[1766718995113,1.958e-05,2969.0,2967.8,0.16862]
[1766718995518,1.958e-05,2969.0,2967.9,3.68202724]
[1766718996722,1.958e-05,2969.0,2967.8,0.16862]
[1766718999521,1.958e-05,2969.0,2967.4,4.47]
[1766718999828,0.16856,2968.9,2967.2,0.00505068]
[1766719000230,40.96856,2968.9,2967.2,0.00505068]
[1766719000930,0.16856,2968.9,2967.2,0.00505068]
[1766719001330,40.8,2968.8,2967.2,0.00505068]
[1766719002030,0.16856,2968.9,2967.2,0.00505068]
[1766719003029,1.958e-05,2969.0,2967.2,0.00505068]
[1766719004024,1.14282935,2969.0,2967.2,0.00505068]
[1766719004232,0.16859,2968.4,2967.2,0.00505068]
[1766719005728,0.1686,2968.3,2967.2,0.00505068]
[1766719005931,0.1686,2968.3,2966.3,10.143]
[1766719007133,0.00505068,2967.9,2967.3,0.00505068]
[1766719007828,0.00505068,2967.9,2966.3,10.143]
[1766719008922,0.00505068,2967.9,2967.1,0.00505068]
[1766719009524,0.00505068,2967.9,2966.3,10.143]
[1766719009727,0.16863,2967.7,2966.9,3.822e-05]
[1766719010530,0.16863,2967.7,2967.0,0.00505068]
[1766719010728,0.00505068,2967.9,2967.0,0.00505068]
[1766719010929,0.00505068,2967.9,2966.9,3.822e-05]
[1766719011330,0.16864,2967.5,2966.9,3.822e-05]
[1766719011533,0.16864,2967.5,2965.6,10.143]
[1766719011734,0.16864,2967.5,2965.4,1.14280977]
[1766719012032,0.16864,2967.5,2966.2,0.00505068]
[1766719012435,0.16864,2967.5,2966.2,0.00940875]
[1766719012930,0.16865,2967.4,2966.2,0.00940875]
[1766719013531,0.16865,2967.3,2966.2,0.00940875]
[1766719014036,0.16867,2967.0,2965.0,0.16878]
[1766719014433,0.16867,2967.0,2965.0,4.05448604]
[1766719015030,0.00505068,2966.3,2965.7,0.00505068]
[1766719015339,2.96e-05,2966.3,2965.7,0.00505068]
[1766719016235,0.00505068,2966.3,2965.7,0.00505068]
[1766719016439,0.16863,2967.7,2965.7,0.00505068]
[1766719016831,0.16863,2967.7,2965.8,3.91241696]
[1766719017240,0.17223074,2967.7,2965.8,3.91241696]
[1766719017937,0.17223074,2967.7,2965.7,0.17379068]
[1766719018347,0.00505068,2967.0,2965.7,0.17379068]
[1766719019133,0.17223074,2967.7,2965.7,0.17379068]
[1766719020134,0.00505068,2967.0,2965.7,0.17379068]
[1766719021537,0.00505068,2967.0,2965.8,0.16874]
[1766719021736,0.17223074,2967.7,2965.8,4.01653752]
[1766719022639,0.00360074,2967.7,2966.2,1.14280977]
[1766719022846,0.00360074,2967.7,2966.3,0.1687]
[1766719023447,0.00360074,2967.7,2965.9,4.477]
[1766719023842,0.00360074,2967.7,2966.0,3.74944473]
[1766719024042,0.00360074,2967.7,2965.9,4.477]
[1766719024843,0.00360074,2967.7,2965.9,4.64573]
[1766719025246,0.00360074,2967.7,2966.0,0.16872]
[1766719026448,0.00360074,2967.7,2965.9,4.477]
[1766719026751,0.16864,2967.5,2965.7,0.00505068]
[1766719028541,0.00360074,2967.7,2965.8,4.70759923]
[1766719028747,0.00360074,2967.7,2965.8,4.87632923]
[1766719029353,0.00360074,2967.7,2965.8,3.73351946]
[1766719032053,0.16868,2966.8,2965.7,0.00505068]
[1766719032454,40.96868,2966.8,2965.7,0.00505068]
[1766719033157,40.96533879,2966.8,2965.7,0.00505068]
[1766719035663,0.16868,2966.7,2965.7,0.00505068]
[1766719035861,0.16868,2966.7,2965.0,0.00289414]
[1766719036653,40.8,2966.8,2965.0,0.00289414]
[1766719036964,0.00505068,2966.2,2965.0,0.00289414]
[1766719037360,6.99805068,2966.2,2965.0,0.00289414]
[1766719038563,0.16872,2966.0,2965.0,0.00289414]
[1766719038757,7.16972,2966.0,2965.0,0.00289414]
[1766719038952,7.16972,2966.0,2965.2,0.00505068]
[1766719039155,7.16972,2966.0,2965.0,0.00289414]
[1766719039564,0.16872,2966.0,2965.0,0.00289414]
[1766719039764,7.17172,2966.0,2965.0,0.00289414]
[1766719040259,0.16872,2966.0,2965.0,0.00289414]
[1766719040462,0.16872,2966.0,2964.1,0.16883]
[1766719041064,0.16872,2966.0,2964.8,0.00505068]
[1766719041260,0.16873,2965.9,2964.8,0.00505068]
[1766719041458,0.16874,2965.8,2964.8,0.00862395]
[1766719043161,0.00505068,2966.2,2964.8,0.00862395]
[1766719044668,0.17376068,2966.2,2964.8,0.00862395]
[1766719049466,0.16873,2966.0,2964.8,0.00862395]
[1766719049663,0.00505068,2966.2,2964.8,0.00862395]
[1766719049865,0.16874,2965.8,2964.8,0.00862395]
[1766719054069,0.16874,2965.8,2964.5,0.01]
[1766719054975,0.16874,2965.8,2964.9,0.00336708]
[1766719055162,7.15274,2965.8,2964.9,0.00610213]
[1766719055368,7.15274,2965.8,2964.5,0.01]
[1766719055672,7.15274,2965.8,2964.5,0.00663709]
[1766719056378,7.15274,2965.8,2964.5,0.00989828]
[1766719056570,0.16875,2965.6,2964.5,0.00989828]
[1766719056774,0.17153706,2965.6,2964.5,0.00989828]
[1766719058173,0.16875,2965.5,2963.5,0.17887]
[1766719058376,1.46241528,2965.6,2963.5,0.01]
[1766719058568,0.16878,2965.1,2963.5,0.01]
[1766719058880,0.0050597,2964.6,2963.5,0.01]
[1766719059378,0.0050597,2964.6,2963.5,0.01351008]
[1766719059882,0.1738697,2964.6,2963.5,0.01351008]
[1766719060377,0.1738697,2964.6,2963.5,1.008e-05]
[1766719060972,0.16881,2964.5,2963.5,1.008e-05]
[1766719061279,0.16882,2964.3,2963.5,1.008e-05]
[1766719061479,0.16883,2964.2,2962.9,0.19170147]
[1766719061671,6.996,2964.1,2962.9,0.19170147]
[1766719061976,0.16883,2964.2,2962.9,0.19170147]
[1766719062179,0.0050597,2964.6,2962.9,0.19170147]
[1766719062378,0.0050597,2964.6,2962.9,0.19487214]
[1766719062572,0.16882,2964.4,2962.9,0.19487214]
[1766719062773,6.998,2964.3,2962.9,0.19487214]
[1766719063472,7.16582,2964.4,2962.9,0.19487214]
[1766719063872,0.16882,2964.4,2962.9,0.19487214]
[1766719064180,0.0050597,2964.6,2962.9,0.19487214]
[1766719065176,0.0050597,2964.6,2963.0,3.5326087]
[1766719065574,1.44341279,2965.0,2963.1,0.16889]
[1766719065975,1.44341279,2965.0,2963.2,3.77979968]
[1766719066176,1.44341279,2965.0,2963.1,0.16889]
[1766719066579,1.44341279,2965.0,2963.8,0.0050597]
[1766719067579,0.0050597,2964.7,2963.8,0.0050597]
[1766719070383,0.0050597,2964.7,2962.9,10.33787214]
[1766719070586,0.0050597,2964.7,2962.9,0.19487214]
[1766719070779,40.8050597,2964.7,2962.9,0.19487214]
[1766719071489,40.8050597,2964.7,2963.5,0.0050597]
[1766719072683,0.0050597,2964.7,2963.5,0.0050597]
[1766719074381,0.3372,2965.4,2963.5,0.1739197]
[1766719074684,0.3372,2965.4,2963.6,3.96548766]
[1766719075392,0.0050597,2964.8,2963.6,3.96548766]
[1766719075785,0.0050597,2964.8,2963.6,0.16886]
[1766719076688,0.0050597,2964.8,2963.5,0.0050597]
[1766719081495,0.0050597,2964.8,2963.5,0.1739297]
[1766719082189,0.0050597,2964.8,2963.6,3.83386715]
[1766719082589,0.0050597,2964.8,2963.6,4.00272715]
[1766719083194,0.3372,2965.4,2963.6,4.00272715]
[1766719084200,0.0050597,2964.8,2963.6,4.00272715]
[1766719084501,0.0050597,2964.8,2963.5,0.0050597]
[1766719085492,0.1688,2964.6,2962.9,0.19487214]
[1766719086597,0.1688,2964.6,2963.5,0.0050597]
[1766719087701,0.1688,2964.6,2962.9,0.19487214]
[1766719088605,0.1688,2964.6,2963.5,0.0050597]
[1766719089403,0.0050597,2964.8,2962.9,0.19487214]
[1766719089599,0.16882,2964.3,2962.9,0.19487214]
[1766719091500,41.1373,2964.7,2962.9,0.19487214]
[1766719091701,0.94840569,2964.6,2961.8,10.143]
[1766719091896,6.998,2964.5,2961.7,0.16897]
[1766719092097,0.16885,2963.8,2961.7,0.16897]
[1766719092301,0.0050597,2963.0,2961.7,0.16897]
[1766719092809,0.00760923,2963.0,2961.7,0.17269331]
[1766719093302,0.00760923,2963.0,2961.8,4.01390724]
[1766719093502,0.00760923,2963.0,2961.8,0.16896]
[1766719094108,0.00760923,2963.0,2961.7,0.00372331]
[1766719098108,0.16891,2962.8,2961.7,0.00372331]
[1766719098603,0.16892,2962.6,2961.7,0.00372331]
[1766719098805,0.16892,2962.6,2961.0,0.1]
[1766719099612,0.16893,2962.4,2961.0,0.1]
[1766719099806,1.15493658,2963.0,2961.0,0.10413456]
[1766719099997,6.993,2962.9,2961.0,0.10413456]
[1766719100302,1.32382658,2963.0,2961.0,0.10413456]
[1766719100502,0.17649923,2963.0,2961.0,0.10413456]
[1766719100702,1.94749923,2963.0,2961.0,0.10413456]
[1766719101009,40.8,2962.9,2961.0,0.10413456]
[1766719101502,7.16849923,2963.0,2961.0,0.10413456]
[1766719101911,40.97649923,2963.0,2961.0,0.10413456]
[1766719102110,47.97249923,2963.0,2961.0,0.10413456]
[1766719102711,49.11982658,2963.0,2961.0,0.10413456]
[1766719102907,0.1689,2962.9,2961.0,0.10413456]
[1766719103506,48.95093658,2963.0,2961.0,0.10413456]
[1766719103812,0.16893,2962.4,2961.0,0.10413456]
[1766719104104,48.95093658,2963.0,2961.0,0.10413456]
[1766719104105,1.14732735,2962.5,2961.0,0.10413456]
[1766719104507,0.16895,2962.0,2961.0,0.10413456]
[1766719104699,7.17995,2962.0,2961.0,0.10413456]
[1766719104908,14.15832735,2962.0,2959.3,0.1691]
[1766719105106,14.15832735,2962.0,2955.6,135.086]
[1766719105107,1.14732735,2960.7,2958.7,0.16914]
[1766719105402,1.14732735,2960.7,2957.5,1.22268678]
[1766719105403,0.16894,2962.2,2959.4,3.78443962]
[1766719105609,0.16894,2962.2,2959.6,1.14732735]
[1766719105811,0.16892,2962.6,2960.0,0.16906]
[1766719106016,0.16893,2962.5,2960.0,0.17317075]
[1766719106216,0.634,2962.4,2960.1,3.6636951]
[1766719106419,0.00506901,2961.5,2961.0,0.00506901]
[1766719107514,47.98093,2962.5,2961.0,0.00506901]
[1766719107718,7.18093,2962.5,2961.0,0.00506901]
[1766719107913,8.32825735,2962.5,2961.0,0.00506901]
[1766719108321,1.14732735,2962.0,2960.0,0.00411075]
[1766719109012,1.31627735,2962.0,2960.0,0.00411075]
[1766719109413,0.00506901,2961.3,2960.0,0.00411075]
[1766719114515,0.17405901,2961.3,2960.0,0.00411075]
[1766719116319,0.169,2961.1,2960.0,0.00411075]
[1766719116524,1.15239636,2961.3,2958.5,0.16915]
[1766719117028,0.16904,2960.5,2958.5,0.16915]
[1766719117324,0.00506901,2959.8,2958.1,1.14732735]
[1766719117529,0.00506901,2959.8,2958.1,1.15091472]
[1766719117530,0.00866932,2959.8,2958.1,1.15091472]
[1766719117728,0.00866932,2959.8,2958.2,4.00293265]
[1766719118229,0.00866932,2959.8,2958.5,0.16915]
[1766719118930,0.00866932,2959.8,2958.2,3.83376265]
[1766719119125,0.00866932,2959.8,2958.1,0.00358737]
[1766719120029,0.00866932,2959.8,2958.2,3.57455474]
[1766719120733,0.00866932,2959.8,2958.3,0.16916]
[1766719121126,0.00866932,2959.8,2958.4,3.75665325]
[1766719121322,0.00866932,2959.8,2958.3,0.16916]
[1766719121730,0.17774932,2959.8,2958.2,2.808]
[1766719122128,0.00866932,2959.8,2958.2,2.808]
[1766719122322,0.00866932,2959.8,2958.3,3.69987946]
[1766719122730,0.16901,2961.0,2958.5,1.14732735]
[1766719123034,0.16902,2960.9,2958.9,0.16913]
[1766719123421,0.16902,2960.9,2959.0,3.83176855]
[1766719123624,0.16902,2960.9,2959.1,0.16912]
[1766719123826,0.00506901,2960.3,2959.7,0.00506901]
[1766719124030,0.00368092,2960.9,2959.7,0.00506901]
[1766719124424,0.16898,2961.5,2959.7,0.00506901]
[1766719124425,0.16898,2961.5,2959.8,3.57871427]
[1766719124928,0.00506901,2960.9,2959.7,0.00506901]
[1766719125429,0.0088675,2960.9,2959.7,0.00506901]
[1766719132130,0.3377,2960.8,2959.7,0.00506901]
[1766719132837,0.3377,2960.8,2958.4,0.16915]
[1766719132838,0.16903,2960.6,2958.4,0.16915]
[1766719133134,0.3377,2960.8,2958.7,3.63807851]
[1766719133433,0.3377,2960.8,2958.6,1.14732735]
[1766719133737,0.3377,2960.8,2958.8,3.63807851]
[1766719133937,0.3377,2960.8,2959.5,0.00506901]
[1766719136025,0.50672,2960.8,2959.5,0.00506901]
[1766719136431,0.96615312,2960.7,2959.5,0.00506901]
[1766719136631,0.50672,2960.8,2959.5,0.00506901]
[1766719136831,0.96615675,2960.7,2959.5,0.00506901]
[1766719137032,0.50672,2960.8,2959.5,0.00506901]
[1766719137442,0.96649956,2960.7,2959.5,0.00506901]
[1766719137634,0.50672,2960.8,2959.5,0.00506901]
[1766719137841,0.96648518,2960.7,2959.5,0.00506901]
[1766719138039,0.50672,2960.8,2959.5,0.00506901]
[1766719138342,0.96688,2960.7,2959.5,0.00506901]
[1766719138544,0.50672,2960.8,2959.5,0.00506901]
[1766719138738,0.96688341,2960.7,2959.5,0.00506901]
[1766719138935,0.50672,2960.8,2959.5,0.00506901]
[1766719139131,0.96688303,2960.7,2959.5,0.00506901]
[1766719139442,0.50672,2960.8,2959.5,0.00506901]
[1766719139744,0.96707828,2960.7,2959.5,0.00506901]
[1766719139941,0.50672,2960.8,2959.5,0.00506901]
[1766719140140,0.96706422,2960.7,2959.5,0.00506901]
[1766719140341,0.50672,2960.8,2959.5,0.00506901]
[1766719140540,1.13633813,2960.7,2959.5,0.00506901]
[1766719140743,0.16903,2960.7,2959.5,0.00506901]
[1766719141046,0.16903,2960.7,2958.9,0.16913]